[Event "*** Titled Tuesday Blitz"]
[Site "Chess.com"]
[Date "2019.12.03"]
[Round "9"]
[White "Spring199"]
[Black "petincash"]
[Result "0-1"]
[WhiteElo "2308"]
[BlackElo "2411"]
[TimeControl "180+2"]
[EndTime "15:06:20 PST"]
[Termination "petincash won by checkmate"]

1. d4 {[%clk 0:03:01.9]} 1... Nf6 {[%clk 0:02:59.8]} 2. c4 {[%clk 0:03:02.3]}
2... g6 {[%clk 0:03:01.2]} 3. Nc3 {[%clk 0:03:02.7]} 3... Bg7 {[%clk 0:03:02.9]}
4. e4 {[%clk 0:03:03.1]} 4... O-O {[%clk 0:03:04.4]} 5. Nge2 {[%clk 0:03:04.4]}
5... d6 {[%clk 0:03:05.7]} 6. Ng3 {[%clk 0:03:05.7]} 6... e5 {[%clk 0:03:05.6]}
7. d5 {[%clk 0:03:06.2]} 7... a5 {[%clk 0:03:05.2]} 8. h4 {[%clk 0:03:05.9]}
8... Na6 {[%clk 0:03:03.9]} 9. h5 {[%clk 0:03:05.8]} 9... Nd7 {[%clk 0:03:02]}
10. hxg6 {[%clk 0:02:57]} 10... fxg6 {[%clk 0:03:01.7]} 11. Bh6 {[%clk
0:02:54.9]} 11... Bxh6 {[%clk 0:02:55.5]} 12. Rxh6 {[%clk 0:02:54.8]} 12... Qg5
{[%clk 0:02:53.8]} 13. Rh1 {[%clk 0:02:45.1]} 13... Ndc5 {[%clk 0:02:54.2]} 14.
Nb5 {[%clk 0:02:27.4]} 14... Bd7 {[%clk 0:02:45.1]} 15. Be2 {[%clk 0:02:11.7]}
15... Rf7 {[%clk 0:01:57.8]} 16. Nc3 {[%clk 0:02:09.1]} 16... Raf8 {[%clk
0:01:53.9]} 17. Bf3 {[%clk 0:02:09.5]} 17... Nb4 {[%clk 0:01:52.6]} 18. Qe2
{[%clk 0:01:58.1]} 18... Nbd3+ {[%clk 0:01:45.3]} 19. Kf1 {[%clk 0:01:56.1]}
19... Nf4 {[%clk 0:01:40.3]} 20. Qd2 {[%clk 0:01:50]} 20... h5 {[%clk
0:01:39.5]} 21. Nge2 {[%clk 0:01:42.5]} 21... Bg4 {[%clk 0:01:29.4]} 22. Nxf4
{[%clk 0:01:13.8]} 22... Qxf4 {[%clk 0:01:30.4]} 23. Qxf4 {[%clk 0:00:52.4]}
23... Rxf4 {[%clk 0:01:32.3]} 24. Rg1 {[%clk 0:00:53.2]} 24... Kh7 {[%clk
0:01:27.3]} 25. Ke2 {[%clk 0:00:52.1]} 25... Nxe4 {[%clk 0:01:26.4]} 26. Nb5
{[%clk 0:00:44.9]} 26... Bxf3+ {[%clk 0:01:21.9]} 27. gxf3 {[%clk 0:00:45.4]}
27... Rxf3 {[%clk 0:01:23.7]} 28. Nxc7 {[%clk 0:00:42.3]} 28... Rxf2+ {[%clk
0:01:22.6]} 29. Ke1 {[%clk 0:00:42.8]} 29... Ng3 {[%clk 0:01:09.5]} 30. Ne6
{[%clk 0:00:32.3]} 30... Rf1+ {[%clk 0:01:01.1]} 31. Kd2 {[%clk 0:00:32.8]}
31... R8f2+ {[%clk 0:01:02.3]} 32. Kc3 {[%clk 0:00:32.1]} 32... Rxg1 {[%clk
0:00:58.4]} 33. Rxg1 {[%clk 0:00:32.4]} 33... Ne2+ {[%clk 0:01:00]} 34. Kb3
{[%clk 0:00:29.1]} 34... Nxg1 {[%clk 0:01:01.9]} 35. Ka4 {[%clk 0:00:29.8]}
35... Nf3 {[%clk 0:00:54.9]} 36. Kxa5 {[%clk 0:00:26.5]} 36... h4 {[%clk
0:00:56.2]} 37. Kb6 {[%clk 0:00:26.8]} 37... Rxb2+ {[%clk 0:00:56.2]} 38. Kc7
{[%clk 0:00:28.7]} 38... h3 {[%clk 0:00:57.3]} 39. Kxd6 {[%clk 0:00:29.1]} 39...
h2 {[%clk 0:00:58.3]} 40. Ke7 {[%clk 0:00:30]} 40... h1=Q {[%clk 0:00:58.5]} 41.
d6 {[%clk 0:00:31.6]} 41... Qh4+ {[%clk 0:00:49.4]} 42. Ke8 {[%clk 0:00:31.5]}
42... Nd4 {[%clk 0:00:42.3]} 43. Nf8+ {[%clk 0:00:29.7]} 43... Kg8 {[%clk
0:00:34.2]} 44. d7 {[%clk 0:00:31.6]} 44... Nc6 {[%clk 0:00:31.6]} 45. Nxg6
{[%clk 0:00:22.1]} 45... Qd8# {[%clk 0:00:29.6]} 0-1

[Event "*** Titled Tuesday Blitz"]
[Site "Chess.com"]
[Date "2019.12.03"]
[Round "9"]
[White "JoakimVonAnd"]
[Black "FrogMist"]
[Result "1-0"]
[WhiteElo "2388"]
[BlackElo "2286"]
[TimeControl "180+2"]
[EndTime "15:06:31 PST"]
[Termination "JoakimVonAnd won by checkmate"]

1. d4 {[%clk 0:03:01.9]} 1... Nf6 {[%clk 0:03:00.6]} 2. c4 {[%clk 0:03:02.7]}
2... e6 {[%clk 0:02:58.2]} 3. Nc3 {[%clk 0:03:03.7]} 3... Bb4 {[%clk 0:02:58.1]}
4. e3 {[%clk 0:03:04.8]} 4... O-O {[%clk 0:02:57.2]} 5. Bd3 {[%clk 0:03:06.3]}
5... c5 {[%clk 0:02:56.7]} 6. Nf3 {[%clk 0:03:06.8]} 6... d5 {[%clk 0:02:56.3]}
7. cxd5 {[%clk 0:03:07.5]} 7... cxd4 {[%clk 0:02:56.2]} 8. Nxd4 {[%clk
0:03:02.8]} 8... exd5 {[%clk 0:02:49.8]} 9. O-O {[%clk 0:03:03]} 9... Nc6 {[%clk
0:02:50.9]} 10. Nce2 {[%clk 0:03:02.3]} 10... Bd6 {[%clk 0:02:40.3]} 11. h3
{[%clk 0:02:59.6]} 11... Bc7 {[%clk 0:02:23.8]} 12. b3 {[%clk 0:02:55.6]} 12...
Qd6 {[%clk 0:02:20.7]} 13. Ng3 {[%clk 0:02:49]} 13... Nxd4 {[%clk 0:02:18.3]}
14. exd4 {[%clk 0:02:50.9]} 14... Ne4 {[%clk 0:02:16.1]} 15. Bxe4 {[%clk
0:02:36.6]} 15... dxe4 {[%clk 0:02:17.2]} 16. Be3 {[%clk 0:02:31.1]} 16... f5
{[%clk 0:02:15.8]} 17. f4 {[%clk 0:02:25.5]} 17... exf3 {[%clk 0:02:14.3]} 18.
Rxf3 {[%clk 0:02:26.6]} 18... f4 {[%clk 0:02:07.1]} 19. Ne4 {[%clk 0:02:25]}
19... Qe7 {[%clk 0:02:06.4]} 20. Qc2 {[%clk 0:02:06.8]} 20... fxe3 {[%clk
0:02:02.1]} 21. Rxf8+ {[%clk 0:02:07.1]} 21... Qxf8 {[%clk 0:02:01.3]} 22. Qxc7
{[%clk 0:02:06.8]} 22... Bf5 {[%clk 0:01:54.5]} 23. Nd6 {[%clk 0:02:04.6]} 23...
Bd3 {[%clk 0:01:48.7]} 24. Qc3 {[%clk 0:01:50.4]} 24... Qf2+ {[%clk 0:01:40.5]}
25. Kh1 {[%clk 0:01:49.5]} 25... e2 {[%clk 0:01:33.4]} 26. Rc1 {[%clk
0:01:44.4]} 26... Rf8 {[%clk 0:01:29]} 27. Qxd3 {[%clk 0:01:34.8]} 27... Qf4
{[%clk 0:00:47.6]} 28. Qc4+ {[%clk 0:01:03.8]} 28... Kh8 {[%clk 0:00:48.1]} 29.
Re1 {[%clk 0:00:54.6]} 29... Qf1+ {[%clk 0:00:41.2]} 30. Kh2 {[%clk 0:00:53.8]}
30... Qf4+ {[%clk 0:00:36.2]} 31. Kg1 {[%clk 0:00:48.8]} 31... h6 {[%clk
0:00:24.8]} 32. Rxe2 {[%clk 0:00:30.8]} 32... Qxd6 {[%clk 0:00:23.2]} 33. Qc5
{[%clk 0:00:24.1]} 33... Qf4 {[%clk 0:00:22.7]} 34. Qe5 {[%clk 0:00:24.5]} 34...
Qc1+ {[%clk 0:00:21.3]} 35. Kh2 {[%clk 0:00:25.4]} 35... Rf1 {[%clk 0:00:07.2]}
36. Qe8+ {[%clk 0:00:20.6]} 36... Kh7 {[%clk 0:00:08.8]} 37. Qe4+ {[%clk
0:00:22.1]} 37... Kh8 {[%clk 0:00:10]} 38. Qe3 {[%clk 0:00:21.2]} 38... Rh1+
{[%clk 0:00:08.9]} 39. Kg3 {[%clk 0:00:22.6]} 39... Qc7+ {[%clk 0:00:10.2]} 40.
Qe5 {[%clk 0:00:23]} 40... Qc3+ {[%clk 0:00:08.6]} 41. Re3 {[%clk 0:00:24.5]}
41... Qd2 {[%clk 0:00:08.6]} 42. Qe8+ {[%clk 0:00:20.9]} 42... Kh7 {[%clk
0:00:09.9]} 43. Qe4+ {[%clk 0:00:22.5]} 43... Kh8 {[%clk 0:00:11.5]} 44. Qf3
{[%clk 0:00:21.8]} 44... Kh7 {[%clk 0:00:05]} 45. Qf5+ {[%clk 0:00:21.4]} 45...
Kh8 {[%clk 0:00:04.1]} 46. Re8# {[%clk 0:00:21.9]} 1-0

[Event "*** Titled Tuesday Blitz"]
[Site "Chess.com"]
[Date "2019.12.03"]
[Round "9"]
[White "Kumi29"]
[Black "VincentKeymer"]
[Result "0-1"]
[WhiteElo "2496"]
[BlackElo "2652"]
[TimeControl "180+2"]
[EndTime "15:06:38 PST"]
[Termination "VincentKeymer won by resignation"]

1. d4 {[%clk 0:03:01.9]} 1... Nf6 {[%clk 0:02:58.4]} 2. Nc3 {[%clk 0:03:03]}
2... d5 {[%clk 0:02:57.8]} 3. Bf4 {[%clk 0:03:04.1]} 3... a6 {[%clk 0:02:57.1]}
4. e3 {[%clk 0:03:05.2]} 4... e6 {[%clk 0:02:57.4]} 5. g4 {[%clk 0:03:06.5]}
5... c5 {[%clk 0:02:56.4]} 6. g5 {[%clk 0:03:06.9]} 6... Nfd7 {[%clk 0:02:55.1]}
7. Nf3 {[%clk 0:03:08.3]} 7... Nc6 {[%clk 0:02:54.7]} 8. a3 {[%clk 0:03:09.6]}
8... b5 {[%clk 0:02:49.4]} 9. h4 {[%clk 0:03:10.6]} 9... Bb7 {[%clk 0:02:49.1]}
10. h5 {[%clk 0:03:10.5]} 10... Be7 {[%clk 0:02:43.7]} 11. Qd2 {[%clk
0:03:11.2]} 11... Qb6 {[%clk 0:02:43.1]} 12. Bh3 {[%clk 0:02:59.9]} 12... O-O-O
{[%clk 0:02:39.4]} 13. dxc5 {[%clk 0:02:48.4]} 13... Nxc5 {[%clk 0:02:35]} 14.
O-O-O {[%clk 0:02:49.2]} 14... Rd7 {[%clk 0:02:18.4]} 15. Nxd5 {[%clk
0:02:29.2]} 15... exd5 {[%clk 0:02:10.9]} 16. Bxd7+ {[%clk 0:02:27]} 16... Nxd7
{[%clk 0:02:08.2]} 17. Qxd5 {[%clk 0:02:27.9]} 17... Nce5 {[%clk 0:02:04.6]} 18.
Nxe5 {[%clk 0:01:17]} 18... Bxd5 {[%clk 0:02:02.1]} 19. Rxd5 {[%clk 0:01:18]}
19... Nxe5 {[%clk 0:01:59.6]} 20. Bxe5 {[%clk 0:01:19.2]} 20... Rd8 {[%clk
0:01:58]} 21. Rxd8+ {[%clk 0:01:11.6]} 21... Qxd8 {[%clk 0:01:56.2]} 22. Rd1
{[%clk 0:00:34.7]} 22... Qe8 {[%clk 0:01:54.7]} 23. Bxg7 {[%clk 0:00:35.1]}
23... Bxg5 {[%clk 0:01:54.1]} 24. Rd5 {[%clk 0:00:35]} 24... f6 {[%clk
0:01:47.5]} 25. h6 {[%clk 0:00:32.8]} 25... Kb7 {[%clk 0:01:40.1]} 26. Kd2
{[%clk 0:00:28.5]} 26... Kc6 {[%clk 0:01:37.6]} 27. Rd4 {[%clk 0:00:25.1]} 27...
Qg6 {[%clk 0:01:35]} 28. Rg4 {[%clk 0:00:16.9]} 28... Qf5 {[%clk 0:01:34.2]} 29.
Rg2 {[%clk 0:00:12.4]} 29... Qf3 {[%clk 0:01:33.9]} 30. Rh2 {[%clk 0:00:12.7]}
30... f5 {[%clk 0:01:31.3]} 31. Bd4 {[%clk 0:00:11.6]} 31... f4 {[%clk
0:01:30.9]} 32. Kd3 {[%clk 0:00:11]} 32... Kd5 {[%clk 0:01:30.5]} 33. b3 {[%clk
0:00:11.5]} 33... Qe4+ {[%clk 0:01:29.4]} 34. Kc3 {[%clk 0:00:12.9]} 34... fxe3
{[%clk 0:01:24.8]} 35. fxe3 {[%clk 0:00:13.1]} 35... Bxe3 {[%clk 0:01:23.2]} 36.
Rh5+ {[%clk 0:00:13.2]} 36... Kd6 {[%clk 0:01:19.3]} 37. Bg7 {[%clk 0:00:12.4]}
37... Bc1 {[%clk 0:01:14.7]} 38. Rh3 {[%clk 0:00:10.3]} 38... Bxa3 {[%clk
0:01:09.8]} 39. Rd3+ {[%clk 0:00:10.3]} 39... Kc6 {[%clk 0:01:09.2]} 40. Rd4
{[%clk 0:00:05.3]} 40... Qe1+ {[%clk 0:01:06.4]} 41. Kd3 {[%clk 0:00:05.8]}
41... Bb2 {[%clk 0:01:03.9]} 42. Re4 {[%clk 0:00:07.3]} 42... Qd1+ {[%clk
0:01:03.7]} 43. Ke3 {[%clk 0:00:08.3]} 43... Bxg7 {[%clk 0:01:03.7]} 44. hxg7
{[%clk 0:00:06.7]} 44... Qg1+ {[%clk 0:01:04.7]} 45. Kd3 {[%clk 0:00:08.2]}
45... Qxg7 {[%clk 0:01:04.6]} 46. Re6+ {[%clk 0:00:09.8]} 46... Kd5 {[%clk
0:01:04.1]} 47. Rxa6 {[%clk 0:00:10.5]} 47... Qg3+ {[%clk 0:01:01.2]} 48. Kd2
{[%clk 0:00:11.7]} 48... Kd4 {[%clk 0:01:01.4]} 49. Kc1 {[%clk 0:00:12.3]} 49...
Qf3 {[%clk 0:00:56.3]} 50. Kb2 {[%clk 0:00:12.4]} 50... h5 {[%clk 0:00:56.2]}
51. Rd6+ {[%clk 0:00:13.6]} 51... Ke5 {[%clk 0:00:55.8]} 52. Rb6 {[%clk
0:00:13.3]} 52... Qe2 {[%clk 0:00:53.1]} 53. Rb8 {[%clk 0:00:14.5]} 53... Kf6
{[%clk 0:00:50.5]} 54. Rf8+ {[%clk 0:00:12.8]} 54... Kg7 {[%clk 0:00:50.7]} 55.
Rf4 {[%clk 0:00:13.3]} 55... Qe5+ {[%clk 0:00:50]} 0-1

[Event "*** Titled Tuesday Blitz"]
[Site "Chess.com"]
[Date "2019.12.03"]
[Round "9"]
[White "Glufs"]
[Black "Kawhi_Leonard2"]
[Result "0-1"]
[WhiteElo "2336"]
[BlackElo "2284"]
[TimeControl "180+2"]
[EndTime "15:06:43 PST"]
[Termination "Kawhi_Leonard2 won by resignation"]

1. Nf3 {[%clk 0:03:01.9]} 1... Nf6 {[%clk 0:03:00.3]} 2. c4 {[%clk 0:03:02.5]}
2... e6 {[%clk 0:03:01.2]} 3. g3 {[%clk 0:03:03]} 3... d5 {[%clk 0:03:02.7]} 4.
Bg2 {[%clk 0:03:04.2]} 4... Be7 {[%clk 0:03:04.2]} 5. d4 {[%clk 0:03:03.8]} 5...
O-O {[%clk 0:03:05.6]} 6. Nc3 {[%clk 0:03:04.5]} 6... dxc4 {[%clk 0:03:06]} 7.
Ne5 {[%clk 0:03:05.4]} 7... Nc6 {[%clk 0:03:05.5]} 8. Bxc6 {[%clk 0:03:06.1]}
8... bxc6 {[%clk 0:03:06.6]} 9. Nxc6 {[%clk 0:03:07.3]} 9... Qe8 {[%clk
0:03:07.9]} 10. Nxe7+ {[%clk 0:03:08.3]} 10... Qxe7 {[%clk 0:03:09.2]} 11. Qa4
{[%clk 0:03:09.1]} 11... e5 {[%clk 0:02:36]} 12. dxe5 {[%clk 0:03:08.4]} 12...
Qxe5 {[%clk 0:02:35.1]} 13. Bf4 {[%clk 0:02:27.3]} 13... Qc5 {[%clk 0:02:30.2]}
14. Rd1 {[%clk 0:01:52.2]} 14... Be6 {[%clk 0:02:06.7]} 15. O-O {[%clk
0:01:47.3]} 15... Rab8 {[%clk 0:01:50.2]} 16. Rd2 {[%clk 0:01:45.6]} 16... Rb4
{[%clk 0:01:29.2]} 17. Be3 {[%clk 0:01:38.9]} 17... Qe7 {[%clk 0:01:06.4]} 18.
Qxa7 {[%clk 0:01:36.9]} 18... Nd7 {[%clk 0:00:38.3]} 19. Qxc7 {[%clk 0:01:29.9]}
19... Rfb8 {[%clk 0:00:38.1]} 20. Rfd1 {[%clk 0:00:48.4]} 20... R4b7 {[%clk
0:00:30.7]} 21. Qa5 {[%clk 0:00:20.8]} 21... h6 {[%clk 0:00:27.4]} 22. Na4
{[%clk 0:00:17.3]} 22... Rb5 {[%clk 0:00:22.8]} 23. Qa7 {[%clk 0:00:16.8]} 23...
R8b7 {[%clk 0:00:23.6]} 24. Qd4 {[%clk 0:00:16.2]} 24... Rh5 {[%clk 0:00:19]}
25. f3 {[%clk 0:00:16]} 25... Rhb5 {[%clk 0:00:13.2]} 26. Bf4 {[%clk 0:00:14.5]}
26... Rb4 {[%clk 0:00:13.6]} 27. Bd6 {[%clk 0:00:14.2]} 27... Qg5 {[%clk
0:00:10.1]} 28. Bxb4 {[%clk 0:00:14.9]} 28... Rxb4 {[%clk 0:00:11.2]} 29. Nc3
{[%clk 0:00:15.9]} 29... Nf6 {[%clk 0:00:10.7]} 30. Qd6 {[%clk 0:00:14.3]} 30...
Rb7 {[%clk 0:00:10.1]} 31. Qf4 {[%clk 0:00:15.1]} 31... Qa5 {[%clk 0:00:10.6]}
32. Qd4 {[%clk 0:00:16.1]} 32... Qg5 {[%clk 0:00:09.9]} 33. Kg2 {[%clk 0:00:17]}
33... h5 {[%clk 0:00:10.8]} 34. h4 {[%clk 0:00:17.3]} 34... Qf5 {[%clk
0:00:11.6]} 35. Qf4 {[%clk 0:00:16.1]} 35... Qh3+ {[%clk 0:00:12.3]} 36. Kf2
{[%clk 0:00:16.3]} 36... Ra7 {[%clk 0:00:05]} 37. Rd8+ {[%clk 0:00:15.8]} 37...
Kh7 {[%clk 0:00:04.8]} 38. Rg1 {[%clk 0:00:16.7]} 38... Ra5 {[%clk 0:00:04]} 39.
Qe3 {[%clk 0:00:16.7]} 39... Rf5 {[%clk 0:00:04.7]} 40. Ne4 {[%clk 0:00:15.8]}
40... Ng4+ {[%clk 0:00:05.3]} 41. Ke1 {[%clk 0:00:16.5]} 41... Nxe3 {[%clk
0:00:06.4]} 42. Ng5+ {[%clk 0:00:17]} 42... Rxg5 {[%clk 0:00:07.7]} 43. hxg5
{[%clk 0:00:18.1]} 43... Qh2 {[%clk 0:00:09.3]} 44. Kd2 {[%clk 0:00:17.4]} 44...
Qxg1 {[%clk 0:00:09.5]} 45. Kc3 {[%clk 0:00:18.6]} 45... Nf5 {[%clk 0:00:09.3]}
46. e4 {[%clk 0:00:18.8]} 46... Nxg3 {[%clk 0:00:09.8]} 47. Rd2 {[%clk
0:00:18.4]} 47... Qe3+ {[%clk 0:00:11]} 48. Kc2 {[%clk 0:00:19.1]} 48... Nxe4
{[%clk 0:00:11.5]} 49. fxe4 {[%clk 0:00:19.7]} 49... Qxe4+ {[%clk 0:00:13]} 50.
Kc3 {[%clk 0:00:20.4]} 50... Bf5 {[%clk 0:00:14.4]} 51. Rd4 {[%clk 0:00:20.9]}
51... Qe5 {[%clk 0:00:15.4]} 0-1

[Event "*** Titled Tuesday Blitz"]
[Site "Chess.com"]
[Date "2019.12.03"]
[Round "9"]
[White "Oleksandr_Bortnyk"]
[Black "Firouzja2003"]
[Result "1-0"]
[WhiteElo "2962"]
[BlackElo "3149"]
[TimeControl "180+2"]
[EndTime "15:06:58 PST"]
[Termination "Oleksandr_Bortnyk won by resignation"]

1. e4 {[%clk 0:02:59.8]} 1... e5 {[%clk 0:02:55.4]} 2. Bc4 {[%clk 0:02:57.1]}
2... Nf6 {[%clk 0:02:53.6]} 3. d3 {[%clk 0:02:57.9]} 3... c6 {[%clk 0:02:52.3]}
4. Nf3 {[%clk 0:02:58.3]} 4... d5 {[%clk 0:02:51.7]} 5. Bb3 {[%clk 0:02:59]}
5... Bb4+ {[%clk 0:02:48.6]} 6. Bd2 {[%clk 0:02:59.7]} 6... Bxd2+ {[%clk
0:02:48]} 7. Qxd2 {[%clk 0:03:01.6]} 7... Qd6 {[%clk 0:02:39.3]} 8. Nc3 {[%clk
0:02:43.6]} 8... O-O {[%clk 0:02:29.7]} 9. h3 {[%clk 0:02:34.9]} 9... Nbd7
{[%clk 0:02:26.3]} 10. O-O {[%clk 0:01:57.8]} 10... a6 {[%clk 0:02:02.8]} 11.
Rfe1 {[%clk 0:01:53.2]} 11... b5 {[%clk 0:01:49.7]} 12. a3 {[%clk 0:01:37.1]}
12... Re8 {[%clk 0:01:08.1]} 13. d4 {[%clk 0:00:50.2]} 13... exd4 {[%clk
0:01:04]} 14. Nxd4 {[%clk 0:00:52.1]} 14... dxe4 {[%clk 0:00:57]} 15. Qe3 {[%clk
0:00:48.6]} 15... Nc5 {[%clk 0:00:38.3]} 16. Rad1 {[%clk 0:00:49]} 16... Nxb3
{[%clk 0:00:37.6]} 17. Ndxb5 {[%clk 0:00:35.3]} 17... Qe5 {[%clk 0:00:22.9]} 18.
Nd6 {[%clk 0:00:36]} 18... Na5 {[%clk 0:00:10.1]} 19. Nxe8 {[%clk 0:00:33.6]}
19... Qxe8 {[%clk 0:00:12]} 20. Nxe4 {[%clk 0:00:31.5]} 20... Nxe4 {[%clk
0:00:13.9]} 21. Qxe4 {[%clk 0:00:32.8]} 21... Be6 {[%clk 0:00:13.9]} 22. Qb4
{[%clk 0:00:28.2]} 22... Nc4 {[%clk 0:00:08.6]} 23. b3 {[%clk 0:00:29.1]} 23...
Rb8 {[%clk 0:00:09.7]} 24. Rxe6 {[%clk 0:00:29.8]} 24... fxe6 {[%clk 0:00:09.2]}
25. Qxc4 {[%clk 0:00:31.4]} 25... Rb5 {[%clk 0:00:07.6]} 26. Rd6 {[%clk
0:00:31.7]} 26... Rd5 {[%clk 0:00:09.2]} 27. Rxc6 {[%clk 0:00:21.9]} 27... h6
{[%clk 0:00:02.6]} 28. Rc8 {[%clk 0:00:21.2]} 28... Rd1+ {[%clk 0:00:03.9]} 29.
Kh2 {[%clk 0:00:21.7]} 29... Rd8 {[%clk 0:00:05.8]} 30. Rxd8 {[%clk 0:00:22.8]}
30... Qxd8 {[%clk 0:00:07.7]} 31. Qxe6+ {[%clk 0:00:24.2]} 31... Kh8 {[%clk
0:00:09.6]} 32. Qxa6 {[%clk 0:00:23.9]} 32... Qc7+ {[%clk 0:00:11.1]} 33. Kg1
{[%clk 0:00:23.3]} 33... Qxc2 {[%clk 0:00:13]} 34. Qc4 {[%clk 0:00:21.7]} 34...
Qd1+ {[%clk 0:00:12.7]} 35. Kh2 {[%clk 0:00:23.2]} 35... Qd6+ {[%clk 0:00:14.6]}
36. g3 {[%clk 0:00:24.2]} 36... Qxa3 {[%clk 0:00:16.5]} 37. b4 {[%clk
0:00:24.6]} 37... Qb2 {[%clk 0:00:15.7]} 38. Qc8+ {[%clk 0:00:25.4]} 38... Kh7
{[%clk 0:00:16.8]} 39. Qc5 {[%clk 0:00:27.3]} 39... g5 {[%clk 0:00:13.6]} 40. b5
{[%clk 0:00:28.4]} 40... h5 {[%clk 0:00:15.1]} 41. Kg2 {[%clk 0:00:28.5]} 41...
h4 {[%clk 0:00:14.6]} 42. gxh4 {[%clk 0:00:28.4]} 42... gxh4 {[%clk 0:00:15.9]}
43. Qh5+ {[%clk 0:00:29.3]} 43... Kg7 {[%clk 0:00:17.5]} 44. Qc5 {[%clk
0:00:27.1]} 44... Kh8 {[%clk 0:00:13.8]} 45. b6 {[%clk 0:00:24.3]} 45... Qg7+
{[%clk 0:00:14.7]} 46. Kh2 {[%clk 0:00:25.4]} 46... Qf7 {[%clk 0:00:12.5]} 47.
Qc8+ {[%clk 0:00:26.3]} 47... Kg7 {[%clk 0:00:14]} 48. Qc7 {[%clk 0:00:27.6]}
48... Kh8 {[%clk 0:00:15.5]} 49. Qc8+ {[%clk 0:00:24]} 49... Kg7 {[%clk
0:00:16.1]} 50. Qg4+ {[%clk 0:00:25.1]} 50... Kh8 {[%clk 0:00:16.6]} 51. Qxh4+
{[%clk 0:00:26.5]} 51... Kg7 {[%clk 0:00:18.2]} 52. Qg3+ {[%clk 0:00:27.8]}
52... Kh8 {[%clk 0:00:19.4]} 53. Kg1 {[%clk 0:00:25.2]} 53... Qd5 {[%clk
0:00:15.7]} 54. Qb8+ {[%clk 0:00:24.6]} 54... Kh7 {[%clk 0:00:16.9]} 55. Qc7+
{[%clk 0:00:25.6]} 55... Kg6 {[%clk 0:00:16.5]} 56. b7 {[%clk 0:00:25.3]} 1-0

[Event "*** Titled Tuesday Blitz"]
[Site "Chess.com"]
[Date "2019.12.03"]
[Round "9"]
[White "Noam_Vitenberg"]
[Black "saraswathii"]
[Result "0-1"]
[WhiteElo "2309"]
[BlackElo "2244"]
[TimeControl "180+2"]
[EndTime "15:07:04 PST"]
[Termination "saraswathii won on time"]

1. c4 {[%clk 0:02:29.6]} 1... Nc6 {[%clk 0:02:59.1]} 2. g3 {[%clk 0:02:15.6]}
2... g6 {[%clk 0:02:59.9]} 3. Bg2 {[%clk 0:02:15.9]} 3... Bg7 {[%clk 0:03:00.9]}
4. e3 {[%clk 0:02:17.1]} 4... Nf6 {[%clk 0:03:01.5]} 5. Ne2 {[%clk 0:02:18.4]}
5... d5 {[%clk 0:03:01.7]} 6. cxd5 {[%clk 0:02:16.2]} 6... Nxd5 {[%clk
0:03:01.1]} 7. O-O {[%clk 0:02:16.7]} 7... O-O {[%clk 0:03:01.5]} 8. d4 {[%clk
0:02:16.3]} 8... e6 {[%clk 0:02:54]} 9. Nbc3 {[%clk 0:02:15.4]} 9... Nb6 {[%clk
0:02:31.5]} 10. b3 {[%clk 0:01:59.7]} 10... Qe7 {[%clk 0:02:27.4]} 11. Bb2
{[%clk 0:01:59.4]} 11... Rd8 {[%clk 0:02:23.9]} 12. Qc1 {[%clk 0:01:42.5]} 12...
e5 {[%clk 0:02:14.3]} 13. d5 {[%clk 0:01:41.5]} 13... Nb4 {[%clk 0:02:12.8]} 14.
Rd1 {[%clk 0:01:42.1]} 14... c6 {[%clk 0:02:00.6]} 15. e4 {[%clk 0:00:58.8]}
15... cxd5 {[%clk 0:01:58.6]} 16. exd5 {[%clk 0:01:00.7]} 16... Bg4 {[%clk
0:01:58.3]} 17. Qe3 {[%clk 0:00:50.7]} 17... Nc2 {[%clk 0:01:55.3]} 18. Qe4
{[%clk 0:00:50.3]} 18... Bf5 {[%clk 0:01:50.9]} 19. Qf3 {[%clk 0:00:42.7]} 19...
e4 {[%clk 0:01:42.8]} 20. Qf4 {[%clk 0:00:31.1]} 20... Nxa1 {[%clk 0:01:39.5]}
21. Bxa1 {[%clk 0:00:33]} 21... Be5 {[%clk 0:01:32]} 22. Qh6 {[%clk 0:00:29.7]}
22... Bg7 {[%clk 0:01:31.9]} 23. Qf4 {[%clk 0:00:30.2]} 23... h5 {[%clk
0:01:24.9]} 24. d6 {[%clk 0:00:17.9]} 24... Qe8 {[%clk 0:01:21]} 25. Nxe4 {[%clk
0:00:16.4]} 25... Bxe4 {[%clk 0:01:18.8]} 26. Bxe4 {[%clk 0:00:14.1]} 26... Bxa1
{[%clk 0:01:18.9]} 27. Rxa1 {[%clk 0:00:16]} 27... Qe6 {[%clk 0:01:18.8]} 28.
Rd1 {[%clk 0:00:10.1]} 28... Rd7 {[%clk 0:01:17.6]} 29. Bf3 {[%clk 0:00:04.7]}
29... Rad8 {[%clk 0:01:14.6]} 30. g4 {[%clk 0:00:03.3]} 30... Rxd6 {[%clk
0:01:11.2]} 31. Rxd6 {[%clk 0:00:03.5]} 31... Qxd6 {[%clk 0:01:11.9]} 32. Qxd6
{[%clk 0:00:02.8]} 32... Rxd6 {[%clk 0:01:13.8]} 33. gxh5 {[%clk 0:00:02.9]}
33... gxh5 {[%clk 0:01:15.7]} 34. Bxb7 {[%clk 0:00:02.8]} 34... Rd2 {[%clk
0:01:16.5]} 35. Nf4 {[%clk 0:00:02.9]} 35... Rxa2 {[%clk 0:01:13.6]} 36. Nxh5
{[%clk 0:00:03.1]} 36... Rb2 {[%clk 0:01:13]} 37. Nf6+ {[%clk 0:00:04]} 37...
Kf8 {[%clk 0:01:12.6]} 38. h4 {[%clk 0:00:03]} 38... Rxb3 {[%clk 0:01:12.2]} 39.
h5 {[%clk 0:00:04.2]} 39... Kg7 {[%clk 0:01:07.7]} 40. Ng4 {[%clk 0:00:04.4]}
40... f5 {[%clk 0:01:02.5]} 41. Ne3 {[%clk 0:00:04.9]} 41... f4 {[%clk 0:01:02]}
42. Ng2 {[%clk 0:00:03.5]} 42... Nc4 {[%clk 0:00:52.9]} 43. Bd5 {[%clk
0:00:04.1]} 43... Rb1+ {[%clk 0:00:51.5]} 44. Kh2 {[%clk 0:00:05.7]} 44... Nb6
{[%clk 0:00:47.4]} 45. Bc6 {[%clk 0:00:03]} 45... Rb4 {[%clk 0:00:45.8]} 46. Kh3
{[%clk 0:00:04.2]} 46... Rc4 {[%clk 0:00:38.5]} 47. Bf3 {[%clk 0:00:04.1]} 47...
Nd7 {[%clk 0:00:35.3]} 48. Be2 {[%clk 0:00:03.8]} 48... Rc3+ {[%clk 0:00:28.1]}
49. Kg4 {[%clk 0:00:04.1]} 49... f3 {[%clk 0:00:28.6]} 0-1